[Event "Live Chess"]
[Site "Chess.com"]
[Date "2023.05.21"]
[Round "-"]
[White "CeladonFish"]
[Black "WilliamofOrange16th"]
[Result "1/2-1/2"]
[WhiteElo "1089"]
[BlackElo "1824"]
[TimeControl "300"]
[EndTime "23:11:53 PDT"]
[Termination "Game drawn by agreement"]

1. d4 {[%clk 0:04:58.1]} 1... d5 {[%clk 0:04:58.8]} 2. c4 {[%clk 0:04:56.9]}
2... c6 {[%clk 0:04:58.1]} 3. Nc3 {[%clk 0:04:55]} 3... Nf6 {[%clk 0:04:56.9]}
4. Bf4 {[%clk 0:04:54.4]} 4... a6 {[%clk 0:04:54.1]} 5. Nf3 {[%clk 0:04:53.4]}
5... Bf5 {[%clk 0:04:52]} 6. e3 {[%clk 0:04:51.5]} 6... e6 {[%clk 0:04:50.7]} 7.
Be2 {[%clk 0:04:50.1]} 7... Bd6 {[%clk 0:04:49.9]} 8. O-O {[%clk 0:04:49.4]}
8... Bxf4 {[%clk 0:04:48.4]} 9. exf4 {[%clk 0:04:49]} 9... O-O {[%clk
0:04:47.1]} 10. Ne5 {[%clk 0:04:43.9]} 10... Ne4 {[%clk 0:04:35.5]} 11. cxd5
{[%clk 0:04:39.8]} 11... exd5 {[%clk 0:04:33.6]} 12. Bf3 {[%clk 0:04:32.7]}
12... f6 {[%clk 0:04:27.3]} 13. Nd3 {[%clk 0:04:22.2]} 13... Re8 {[%clk
0:04:20.8]} 14. Re1 {[%clk 0:04:19.2]} 14... Nd7 {[%clk 0:04:16.4]} 15. Bxe4
{[%clk 0:04:16.5]} 15... dxe4 {[%clk 0:04:15.6]} 16. Nc5 {[%clk 0:04:11.7]}
16... Nxc5 {[%clk 0:04:14.6]} 17. dxc5 {[%clk 0:04:10.6]} 17... Qa5 {[%clk
0:04:08.3]} 18. Qd4 {[%clk 0:03:50.8]} 18... Rad8 {[%clk 0:04:03.9]} 19. Qc4+
{[%clk 0:03:37.4]} 19... Kh8 {[%clk 0:03:57.1]} 20. Nxe4 {[%clk 0:03:32]} 20...
Bxe4 {[%clk 0:03:52.4]} 21. Rxe4 {[%clk 0:03:29.8]} 21... Rxe4 {[%clk 0:03:51]}
22. Qxe4 {[%clk 0:03:29.2]} 22... Qxc5 {[%clk 0:03:49.7]} 23. Re1 {[%clk
0:03:22.6]} 23... b5 {[%clk 0:03:32.6]} 24. Qe8+ {[%clk 0:03:18.2]} 24... Qf8
{[%clk 0:03:30.9]} 25. Qe4 {[%clk 0:03:09.9]} 25... g6 {[%clk 0:03:11.3]} 26. h3
{[%clk 0:03:05.9]} 26... c5 {[%clk 0:03:09.7]} 27. Re3 {[%clk 0:03:00.8]} 27...
Kg7 {[%clk 0:03:06.9]} 28. g4 {[%clk 0:02:53.6]} 28... Qf7 {[%clk 0:03:02.6]}
29. h4 {[%clk 0:02:25.3]} 29... c4 {[%clk 0:02:44.8]} 30. g5 {[%clk 0:02:23.1]}
30... Rd6 {[%clk 0:02:31]} 31. gxf6+ {[%clk 0:02:11.3]} 31... Rxf6 {[%clk
0:02:28.6]} 32. h5 {[%clk 0:02:02.4]} 32... Rxf4 {[%clk 0:02:14.9]} 33. Qe5+
{[%clk 0:01:59.4]} 33... Rf6 {[%clk 0:02:13.6]} 34. hxg6 {[%clk 0:01:56.5]}
34... hxg6 {[%clk 0:02:10.7]} 35. Rf3 {[%clk 0:01:46.3]} 35... b4 {[%clk
0:02:00.6]} 36. Rxf6 {[%clk 0:01:40.6]} 36... Qxf6 {[%clk 0:02:00.5]} 37. Qc7+
{[%clk 0:01:36.5]} 37... Qf7 {[%clk 0:01:58.4]} 38. Qa5 {[%clk 0:01:34.5]} 38...
c3 {[%clk 0:01:45.8]} 39. bxc3 {[%clk 0:01:32.1]} 39... bxc3 {[%clk 0:01:45]}
40. Qxc3+ {[%clk 0:01:30.4]} 40... Qf6 {[%clk 0:01:42]} 41. Qa5 {[%clk
0:01:23.1]} 41... Qc6 {[%clk 0:01:33]} 42. Kf1 {[%clk 0:01:15.6]} 42... Qb5+
{[%clk 0:01:28.6]} 43. Qxb5 {[%clk 0:01:13.5]} 43... axb5 {[%clk 0:01:28.5]} 44.
Ke2 {[%clk 0:01:11.9]} 44... Kf6 {[%clk 0:01:28.1]} 45. Kd3 {[%clk 0:01:10.6]}
45... Kf5 {[%clk 0:01:26.9]} 46. Kd4 {[%clk 0:01:09.1]} 46... Kf4 {[%clk
0:01:25.6]} 47. Kc5 {[%clk 0:01:08]} 47... Kf3 {[%clk 0:01:25.1]} 48. Kxb5
{[%clk 0:01:07.3]} 48... Kxf2 {[%clk 0:01:24.6]} 49. a4 {[%clk 0:01:07]} 49...
g5 {[%clk 0:01:24.3]} 50. a5 {[%clk 0:01:06.1]} 50... g4 {[%clk 0:01:24.2]} 51.
a6 {[%clk 0:01:05.2]} 51... g3 {[%clk 0:01:23.8]} 52. a7 {[%clk 0:01:04]} 52...
g2 {[%clk 0:01:23.3]} 53. a8=Q {[%clk 0:01:02.3]} 53... g1=Q {[%clk 0:01:22.2]}
54. Qf8+ {[%clk 0:00:56.8]} 54... Ke1 {[%clk 0:01:20.9]} 55. Qe7+ {[%clk
0:00:53.2]} 55... Kd1 {[%clk 0:01:17.5]} 1/2-1/2

[Event "Live Chess"]
[Site "Chess.com"]
[Date "2023.05.21"]
[Round "-"]
[White "BJAW87"]
[Black "Crowded_House"]
[Result "0-1"]
[WhiteElo "1433"]
[BlackElo "1699"]
[TimeControl "300"]
[EndTime "23:12:28 PDT"]
[Termination "Crowded_House won by resignation"]

1. e4 {[%clk 0:04:59.7]} 1... e6 {[%clk 0:04:59.5]} 2. d4 {[%clk 0:04:55.2]}
2... d5 {[%clk 0:04:59.2]} 3. exd5 {[%clk 0:04:53.3]} 3... exd5 {[%clk
0:04:57.5]} 4. Nf3 {[%clk 0:04:50.9]} 4... Bd6 {[%clk 0:04:56.6]} 5. Bd3 {[%clk
0:04:44.6]} 5... Ne7 {[%clk 0:04:54.2]} 6. O-O {[%clk 0:04:43.9]} 6... h6 {[%clk
0:04:49.1]} 7. Re1 {[%clk 0:04:36.7]} 7... O-O {[%clk 0:04:47.5]} 8. Ne5 {[%clk
0:04:25.6]} 8... Bf5 {[%clk 0:04:30.5]} 9. Bxf5 {[%clk 0:04:14.8]} 9... Nxf5
{[%clk 0:04:29]} 10. Qg4 {[%clk 0:04:12]} 10... Qf6 {[%clk 0:04:12]} 11. Nc3
{[%clk 0:03:49.7]} 11... c6 {[%clk 0:04:08.1]} 12. Ne2 {[%clk 0:03:45.2]} 12...
Bxe5 {[%clk 0:04:03.2]} 13. dxe5 {[%clk 0:03:43.7]} 13... Qxe5 {[%clk
0:03:53.8]} 14. Bxh6 {[%clk 0:03:42.1]} 14... Nxh6 {[%clk 0:03:48.6]} 15. Qh3
{[%clk 0:03:40.5]} 15... Qf5 {[%clk 0:03:25.4]} 16. Ng3 {[%clk 0:03:00.3]} 16...
Qxh3 {[%clk 0:03:22.9]} 17. gxh3 {[%clk 0:02:59.4]} 17... Nd7 {[%clk 0:03:07]}
18. Re7 {[%clk 0:01:05.9]} 18... Rad8 {[%clk 0:02:57.5]} 19. Rae1 {[%clk
0:01:01.5]} 19... b6 {[%clk 0:02:48.5]} 20. a4 {[%clk 0:00:58.1]} 20... a5
{[%clk 0:02:45.8]} 21. c3 {[%clk 0:00:56.7]} 21... g6 {[%clk 0:02:43.5]} 22. Kg2
{[%clk 0:00:50.5]} 22... Nf6 {[%clk 0:02:20.3]} 23. Rb7 {[%clk 0:00:48]} 23...
Rb8 {[%clk 0:02:17.1]} 24. Rc7 {[%clk 0:00:46.1]} 24... Rfc8 {[%clk 0:02:11.9]}
25. Rd7 {[%clk 0:00:44.7]} 25... Nxd7 {[%clk 0:02:08.1]} 0-1

[Event "Live Chess"]
[Site "Chess.com"]
[Date "2023.05.21"]
[Round "-"]
[White "Conradical12"]
[Black "ProfPoisson"]
[Result "0-1"]
[WhiteElo "1605"]
[BlackElo "1139"]
[TimeControl "300"]
[EndTime "23:12:35 PDT"]
[Termination "ProfPoisson won by resignation"]

1. e4 {[%clk 0:04:52.2]} 1... e5 {[%clk 0:04:57.6]} 2. f4 {[%clk 0:04:49.4]}
2... d5 {[%clk 0:04:54.8]} 3. exd5 {[%clk 0:04:42.2]} 3... c6 {[%clk 0:04:52.3]}
4. dxc6 {[%clk 0:04:40.3]} 4... Nxc6 {[%clk 0:04:49.8]} 5. Nc3 {[%clk
0:04:34.9]} 5... Bc5 {[%clk 0:04:42.9]} 6. Bc4 {[%clk 0:04:27.6]} 6... Qd4
{[%clk 0:04:26.2]} 7. Qe2 {[%clk 0:04:19.9]} 7... Bg4 {[%clk 0:04:16.2]} 8. Nf3
{[%clk 0:04:16.9]} 8... Bxf3 {[%clk 0:04:13]} 9. gxf3 {[%clk 0:04:11.3]} 9...
Nge7 {[%clk 0:03:48.5]} 10. d3 {[%clk 0:03:26.7]} 10... O-O {[%clk 0:03:38]} 11.
Rb1 {[%clk 0:03:19.1]} 11... Rfe8 {[%clk 0:03:21]} 12. Be3 {[%clk 0:03:06.9]}
12... Qxe3 {[%clk 0:03:12.8]} 13. Qxe3 {[%clk 0:03:03.1]} 13... Bxe3 {[%clk
0:03:08.7]} 14. f5 {[%clk 0:03:00.5]} 14... Nxf5 {[%clk 0:03:03.6]} 15. Ne4
{[%clk 0:02:58.7]} 15... Ncd4 {[%clk 0:02:50.4]} 16. Rf1 {[%clk 0:02:35.2]}
16... Nxc2+ {[%clk 0:02:44.7]} 17. Ke2 {[%clk 0:02:33.2]} 17... Ncd4+ {[%clk
0:02:42.7]} 18. Kd1 {[%clk 0:02:31.5]} 18... Rac8 {[%clk 0:02:25.9]} 19. Ng5
{[%clk 0:02:21.6]} 19... Re7 {[%clk 0:02:06.9]} 20. Ne4 {[%clk 0:02:13.2]} 20...
a6 {[%clk 0:01:59.8]} 21. Nd2 {[%clk 0:01:42.2]} 21... Bh6 {[%clk 0:01:53.9]}
22. Rc1 {[%clk 0:01:39.5]} 22... Ne3+ {[%clk 0:01:51]} 23. Ke1 {[%clk
0:01:34.6]} 23... Nxf1 {[%clk 0:01:47.3]} 24. Bxf7+ {[%clk 0:01:33.4]} 24...
Kxf7 {[%clk 0:01:44.3]} 25. Rxc8 {[%clk 0:01:29.2]} 25... Bxd2+ {[%clk
0:01:42.4]} 26. Kxf1 {[%clk 0:01:27.3]} 26... Nxf3 {[%clk 0:01:39.8]} 0-1

[Event "Live Chess"]
[Site "Chess.com"]
[Date "2023.05.21"]
[Round "-"]
[White "tuppyglossop"]
[Black "Nazarenko_vital"]
[Result "1-0"]
[WhiteElo "1640"]
[BlackElo "1632"]
[TimeControl "300"]
[EndTime "23:12:48 PDT"]
[Termination "tuppyglossop won on time"]

1. e4 {[%clk 0:04:57.7]} 1... d5 {[%clk 0:04:58.6]} 2. exd5 {[%clk 0:04:56.6]}
2... Qxd5 {[%clk 0:04:57.7]} 3. Nc3 {[%clk 0:04:56.5]} 3... Qa5 {[%clk
0:04:56.3]} 4. d4 {[%clk 0:04:53.9]} 4... Nf6 {[%clk 0:04:55.5]} 5. Bd3 {[%clk
0:04:52.4]} 5... Bg4 {[%clk 0:04:54]} 6. f3 {[%clk 0:04:51.3]} 6... Bh5 {[%clk
0:04:53]} 7. Ne2 {[%clk 0:04:50.2]} 7... e6 {[%clk 0:04:47]} 8. O-O {[%clk
0:04:48.5]} 8... c6 {[%clk 0:04:45.4]} 9. Bd2 {[%clk 0:04:45.8]} 9... Qc7 {[%clk
0:04:43.9]} 10. Ne4 {[%clk 0:04:41.9]} 10... Nxe4 {[%clk 0:04:30.4]} 11. Bxe4
{[%clk 0:04:30.4]} 11... Nd7 {[%clk 0:04:29.4]} 12. c4 {[%clk 0:04:28.6]} 12...
Nf6 {[%clk 0:04:26.4]} 13. Bc2 {[%clk 0:04:26.6]} 13... Bd6 {[%clk 0:04:23.4]}
14. h3 {[%clk 0:04:05.2]} 14... Bg6 {[%clk 0:04:04.4]} 15. Nc3 {[%clk 0:03:58]}
15... Bh2+ {[%clk 0:03:55.9]} 16. Kh1 {[%clk 0:03:55.1]} 16... Bg3 {[%clk
0:03:51.6]} 17. Be4 {[%clk 0:03:41.5]} 17... O-O-O {[%clk 0:03:44.8]} 18. Qe2
{[%clk 0:03:40]} 18... Bf4 {[%clk 0:03:34]} 19. Be3 {[%clk 0:03:25.3]} 19...
Bxe3 {[%clk 0:03:31.9]} 20. Qxe3 {[%clk 0:03:24]} 20... a6 {[%clk 0:03:31.1]}
21. Rad1 {[%clk 0:03:21.3]} 21... Nh5 {[%clk 0:03:26]} 22. Rfe1 {[%clk
0:03:11.5]} 22... Ng3+ {[%clk 0:03:06.5]} 23. Kg1 {[%clk 0:02:57.7]} 23... Nf5
{[%clk 0:02:14.2]} 24. Bxf5 {[%clk 0:02:52.6]} 24... Bxf5 {[%clk 0:02:11.2]} 25.
Ne4 {[%clk 0:02:48.8]} 25... h6 {[%clk 0:02:02.4]} 26. c5 {[%clk 0:02:43.2]}
26... Bxe4 {[%clk 0:01:44.1]} 27. fxe4 {[%clk 0:02:36.3]} 27... g5 {[%clk
0:01:34.1]} 28. a3 {[%clk 0:02:24.4]} 28... Rhg8 {[%clk 0:01:15.5]} 29. Qf3
{[%clk 0:02:22.5]} 29... Qf4 {[%clk 0:01:05.2]} 30. Qxf4 {[%clk 0:02:11.9]}
30... gxf4 {[%clk 0:01:03.9]} 31. Rd3 {[%clk 0:02:06.4]} 31... Rg7 {[%clk
0:00:53]} 32. Kf2 {[%clk 0:02:03.9]} 32... Rdg8 {[%clk 0:00:49.4]} 33. Rg1
{[%clk 0:02:02]} 33... h5 {[%clk 0:00:41.8]} 34. d5 {[%clk 0:01:58.6]} 34...
cxd5 {[%clk 0:00:19.8]} 35. exd5 {[%clk 0:01:58.5]} 35... Rg3 {[%clk 0:00:17.3]}
36. Rxg3 {[%clk 0:01:47]} 36... fxg3+ {[%clk 0:00:15.1]} 37. Kf3 {[%clk
0:01:40.1]} 37... exd5 {[%clk 0:00:14]} 38. Rd1 {[%clk 0:01:39]} 38... Rg5
{[%clk 0:00:02.9]} 39. b4 {[%clk 0:01:35.6]} 1-0

[Event "Live Chess"]
[Site "Chess.com"]
[Date "2023.05.21"]
[Round "-"]
[White "Doge_Dandolo"]
[Black "Tushinskiy"]
[Result "0-1"]
[WhiteElo "1894"]
[BlackElo "2202"]
[TimeControl "300"]
[EndTime "23:13:07 PDT"]
[Termination "Tushinskiy won by resignation"]

1. Nf3 {[%clk 0:04:57.7]} 1... d5 {[%clk 0:04:58.7]} 2. c4 {[%clk 0:04:55.5]}
2... c6 {[%clk 0:04:58.6]} 3. g3 {[%clk 0:04:54]} 3... Nf6 {[%clk 0:04:55.8]} 4.
Bg2 {[%clk 0:04:53.2]} 4... e6 {[%clk 0:04:55.2]} 5. d4 {[%clk 0:04:51.4]} 5...
Bd6 {[%clk 0:04:54.6]} 6. Qc2 {[%clk 0:04:50]} 6... Nbd7 {[%clk 0:04:54]} 7.
Nbd2 {[%clk 0:04:48.9]} 7... Qe7 {[%clk 0:04:53.3]} 8. O-O {[%clk 0:04:47.8]}
8... O-O {[%clk 0:04:51.9]} 9. e4 {[%clk 0:04:46.5]} 9... dxe4 {[%clk
0:04:51.8]} 10. Nxe4 {[%clk 0:04:45]} 10... Nxe4 {[%clk 0:04:51.7]} 11. Qxe4
{[%clk 0:04:44]} 11... Nf6 {[%clk 0:04:51.5]} 12. Qc2 {[%clk 0:04:42.2]} 12...
h6 {[%clk 0:04:51.4]} 13. Re1 {[%clk 0:04:40.3]} 13... Qc7 {[%clk 0:04:49.5]}
14. Be3 {[%clk 0:04:31.6]} 14... b6 {[%clk 0:04:48.5]} 15. Rad1 {[%clk
0:04:29.7]} 15... Bb7 {[%clk 0:04:47.1]} 16. b3 {[%clk 0:04:27.8]} 16... Rad8
{[%clk 0:04:45.5]} 17. c5 {[%clk 0:04:25]} 17... Be7 {[%clk 0:04:43.7]} 18. Bf4
{[%clk 0:04:23.6]} 18... Qc8 {[%clk 0:04:41.8]} 19. Ne5 {[%clk 0:04:18]} 19...
Nd5 {[%clk 0:04:40.8]} 20. a3 {[%clk 0:04:15.1]} 20... Nxf4 {[%clk 0:04:38.8]}
21. gxf4 {[%clk 0:04:13.1]} 21... Bf6 {[%clk 0:04:33.9]} 22. b4 {[%clk
0:04:09.1]} 22... Qc7 {[%clk 0:04:29.7]} 23. Re3 {[%clk 0:03:58.4]} 23... Bxe5
{[%clk 0:04:22.8]} 24. fxe5 {[%clk 0:03:54.7]} 24... Rd7 {[%clk 0:04:21.6]} 25.
Rg3 {[%clk 0:03:52.8]} 25... Rfd8 {[%clk 0:04:13.3]} 26. Qc1 {[%clk 0:03:45.6]}
26... Qxe5 {[%clk 0:04:06.7]} 27. Qxh6 {[%clk 0:03:36.6]} 27... Qxg3 {[%clk
0:04:03.1]} 0-1

[Event "Live Chess"]
[Site "Chess.com"]
[Date "2023.05.21"]
[Round "-"]
[White "tpm07"]
[Black "MaximKris"]
[Result "1-0"]
[WhiteElo "1921"]
[BlackElo "1858"]
[TimeControl "300"]
[EndTime "23:13:08 PDT"]
[Termination "tpm07 won by checkmate"]

1. e4 {[%clk 0:04:55.9]} 1... e5 {[%clk 0:04:58.5]} 2. Nf3 {[%clk 0:04:55]} 2...
Nc6 {[%clk 0:04:55.6]} 3. Bb5 {[%clk 0:04:54.3]} 3... a6 {[%clk 0:04:54]} 4. Ba4
{[%clk 0:04:53]} 4... Nf6 {[%clk 0:04:52.6]} 5. O-O {[%clk 0:04:50.9]} 5... Bc5
{[%clk 0:04:50.1]} 6. c3 {[%clk 0:04:42.5]} 6... b5 {[%clk 0:04:46.8]} 7. Bc2
{[%clk 0:04:39.3]} 7... d6 {[%clk 0:04:46]} 8. d4 {[%clk 0:04:34.9]} 8... exd4
{[%clk 0:04:45.9]} 9. cxd4 {[%clk 0:04:34.2]} 9... Bb6 {[%clk 0:04:44.5]} 10.
Nc3 {[%clk 0:04:32.7]} 10... O-O {[%clk 0:04:41.6]} 11. Bg5 {[%clk 0:04:32.3]}
11... h6 {[%clk 0:04:40]} 12. Bh4 {[%clk 0:04:30.6]} 12... Bg4 {[%clk
0:04:37.6]} 13. a3 {[%clk 0:04:21.3]} 13... Nxd4 {[%clk 0:04:30.7]} 14. Qd3
{[%clk 0:04:19.1]} 14... Nxf3+ {[%clk 0:04:26.1]} 15. gxf3 {[%clk 0:04:18]}
15... Bh3 {[%clk 0:04:20.6]} 16. e5 {[%clk 0:04:13.2]} 16... Bxf1 {[%clk
0:04:16.1]} 17. Qf5 {[%clk 0:04:06.4]} 17... g6 {[%clk 0:04:10.3]} 18. Qf4
{[%clk 0:04:00]} 18... dxe5 {[%clk 0:04:03.2]} 19. Qxh6 {[%clk 0:03:56.4]} 19...
Bc4 {[%clk 0:03:41.3]} 20. Ne4 {[%clk 0:03:44.2]} 20... Bxf2+ {[%clk 0:03:20.1]}
21. Nxf2 {[%clk 0:03:25]} 21... Qd6 {[%clk 0:02:56.1]} 22. Rd1 {[%clk
0:03:16.7]} 22... Qe6 {[%clk 0:02:04.2]} 23. b3 {[%clk 0:03:03.4]} 23... Bd5
{[%clk 0:01:15.1]} 24. Bxf6 {[%clk 0:03:00.4]} 24... Qxf6 {[%clk 0:01:13.4]} 25.
Rxd5 {[%clk 0:02:59.6]} 25... Qg7 {[%clk 0:01:00.6]} 26. Qe3 {[%clk 0:02:49.5]}
26... Rad8 {[%clk 0:00:57.2]} 27. Rxe5 {[%clk 0:02:44.6]} 27... Rd6 {[%clk
0:00:39.1]} 28. Ng4 {[%clk 0:02:29.1]} 28... Rfd8 {[%clk 0:00:31.8]} 29. Nh6+
{[%clk 0:02:02.9]} 29... Kh7 {[%clk 0:00:27.5]} 30. Nxf7 {[%clk 0:01:47.9]}
30... Rf6 {[%clk 0:00:12.7]} 31. Ng5+ {[%clk 0:01:44.5]} 31... Kh8 {[%clk
0:00:11]} 32. Re7 {[%clk 0:01:37]} 32... Qg8 {[%clk 0:00:08.8]} 33. Rh7+ {[%clk
0:01:33.9]} 33... Qxh7 {[%clk 0:00:08]} 34. Nxh7 {[%clk 0:01:33]} 34... Kxh7
{[%clk 0:00:07.9]} 35. Qe7+ {[%clk 0:01:32.1]} 35... Kh6 {[%clk 0:00:07.8]} 36.
Qxf6 {[%clk 0:01:29.4]} 36... Kh5 {[%clk 0:00:07.7]} 37. Qxd8 {[%clk 0:01:27.6]}
37... Kh6 {[%clk 0:00:06.4]} 38. Qh4+ {[%clk 0:01:25.8]} 38... Kg7 {[%clk
0:00:05.5]} 39. Qg4 {[%clk 0:01:24.8]} 39... Kg8 {[%clk 0:00:05.4]} 40. Qxg6+
{[%clk 0:01:24]} 40... Kh8 {[%clk 0:00:05.3]} 41. Qh7# {[%clk 0:01:21.7]} 1-0

[Event "Live Chess"]
[Site "Chess.com"]
[Date "2023.05.21"]
[Round "-"]
[White "JohanKjeldahl"]
[Black "LutherSullivan"]
[Result "0-1"]
[WhiteElo "1869"]
[BlackElo "2193"]
[TimeControl "300"]
[EndTime "23:13:14 PDT"]
[Termination "LutherSullivan won by resignation"]

1. c4 {[%clk 0:04:56.2]} 1... e5 {[%clk 0:04:58.3]} 2. Nc3 {[%clk 0:04:54.3]}
2... Bb4 {[%clk 0:04:55.8]} 3. Qc2 {[%clk 0:04:51.8]} 3... Ne7 {[%clk
0:04:51.7]} 4. e3 {[%clk 0:04:48.6]} 4... O-O {[%clk 0:04:49.4]} 5. Nf3 {[%clk
0:04:46.4]} 5... d6 {[%clk 0:04:47.2]} 6. Be2 {[%clk 0:04:39.2]} 6... f6 {[%clk
0:04:35.9]} 7. O-O {[%clk 0:04:35.9]} 7... Be6 {[%clk 0:04:30.4]} 8. b3 {[%clk
0:04:30.9]} 8... c6 {[%clk 0:04:11.8]} 9. Bb2 {[%clk 0:04:28.8]} 9... d5 {[%clk
0:04:03.9]} 10. cxd5 {[%clk 0:04:25.1]} 10... cxd5 {[%clk 0:04:02.2]} 11. a3
{[%clk 0:04:09.7]} 11... Bd6 {[%clk 0:03:58.8]} 12. Nb5 {[%clk 0:04:06.5]} 12...
Nbc6 {[%clk 0:03:52.5]} 13. Rac1 {[%clk 0:03:52.5]} 13... Bb8 {[%clk 0:03:49]}
14. d4 {[%clk 0:03:41.4]} 14... e4 {[%clk 0:03:46.5]} 15. Nd2 {[%clk 0:03:34.8]}
15... a6 {[%clk 0:03:43.7]} 16. Nc3 {[%clk 0:03:33.1]} 16... f5 {[%clk
0:03:41.6]} 17. f4 {[%clk 0:03:30.5]} 17... exf3 {[%clk 0:03:34.3]} 18. Nxf3
{[%clk 0:03:27.6]} 18... f4 {[%clk 0:03:23.4]} 19. Nd1 {[%clk 0:03:07.3]} 19...
Bf5 {[%clk 0:03:15.2]} 20. Bd3 {[%clk 0:02:56.3]} 20... Bxd3 {[%clk 0:03:11.4]}
21. Qxd3 {[%clk 0:02:54.9]} 21... Nf5 {[%clk 0:02:05]} 22. e4 {[%clk 0:02:50.6]}
22... dxe4 {[%clk 0:02:02.8]} 23. Qxe4 {[%clk 0:02:47.5]} 23... Ba7 {[%clk
0:01:57.3]} 24. Kh1 {[%clk 0:02:37.1]} 24... Ncxd4 {[%clk 0:01:27.5]} 25. Nxd4
{[%clk 0:02:31.6]} 25... Bxd4 {[%clk 0:01:23.5]} 26. Bxd4 {[%clk 0:02:27.5]}
26... Qxd4 {[%clk 0:01:20.9]} 27. Rxf4 {[%clk 0:02:19.8]} 27... Qxe4 {[%clk
0:00:44.2]} 28. Rxe4 {[%clk 0:02:17.4]} 28... Rae8 {[%clk 0:00:43.7]} 29. Rcc4
{[%clk 0:02:03.1]} 29... Nd6 {[%clk 0:00:37.7]} 30. Rxe8 {[%clk 0:01:38.1]}
30... Rxe8 {[%clk 0:00:37]} 0-1

[Event "Live Chess"]
[Site "Chess.com"]
[Date "2023.05.21"]
[Round "-"]
[White "Mikhail_Golubev"]
[Black "aliciabutteriss"]
[Result "1-0"]
[WhiteElo "2505"]
[BlackElo "568"]
[TimeControl "300"]
[EndTime "23:13:44 PDT"]
[Termination "Mikhail_Golubev won by resignation"]

1. Na3 {[%clk 0:04:56.4]} 1... e5 {[%clk 0:04:55.1]} 2. Nc4 {[%clk 0:04:53.3]}
2... Nc6 {[%clk 0:04:46.7]} 3. e4 {[%clk 0:04:51.6]} 3... Nf6 {[%clk 0:04:41.4]}
4. d3 {[%clk 0:04:43.7]} 4... d5 {[%clk 0:04:31.3]} 5. exd5 {[%clk 0:04:41.8]}
5... Qxd5 {[%clk 0:04:19.1]} 6. Nf3 {[%clk 0:04:32.5]} 6... Bc5 {[%clk
0:04:10.8]} 7. Be2 {[%clk 0:04:26.6]} 7... h6 {[%clk 0:03:59.8]} 8. O-O {[%clk
0:04:20.3]} 8... O-O {[%clk 0:03:58.6]} 9. Be3 {[%clk 0:04:10.2]} 9... Re8
{[%clk 0:03:45.3]} 10. Nfd2 {[%clk 0:03:32.5]} 10... b6 {[%clk 0:03:19.2]} 11.
Bf3 {[%clk 0:03:25.6]} 11... Qe6 {[%clk 0:03:02.3]} 12. Bxc5 {[%clk 0:03:23.6]}
12... bxc5 {[%clk 0:03:00.1]} 13. Nb3 {[%clk 0:03:17.1]} 13... Nd4 {[%clk
0:02:24.5]} 14. Nxd4 {[%clk 0:03:14.9]} 14... cxd4 {[%clk 0:02:19.4]} 15. Bxa8
{[%clk 0:03:12.5]} 15... c5 {[%clk 0:02:09]} 16. Re1 {[%clk 0:03:02.4]} 16... e4
{[%clk 0:01:48.4]} 17. Bxe4 {[%clk 0:02:56.5]} 17... Nxe4 {[%clk 0:01:36]} 18.
Rxe4 {[%clk 0:02:56.4]} 1-0

[Event "Live Chess"]
[Site "Chess.com"]
[Date "2023.05.21"]
[Round "-"]
[White "Singapourfeuj"]
[Black "OleksiyJr1"]
[Result "1-0"]
[WhiteElo "2214"]
[BlackElo "965"]
[TimeControl "300"]
[EndTime "23:13:52 PDT"]
[Termination "Singapourfeuj won by resignation"]

1. d4 {[%clk 0:04:57.8]} 1... Nf6 {[%clk 0:04:57.8]} 2. Nf3 {[%clk 0:04:56.9]}
2... c6 {[%clk 0:04:55.1]} 3. c4 {[%clk 0:04:55.6]} 3... d5 {[%clk 0:04:54]} 4.
Nc3 {[%clk 0:04:54.4]} 4... e6 {[%clk 0:04:52]} 5. cxd5 {[%clk 0:04:52.6]} 5...
exd5 {[%clk 0:04:50.2]} 6. Bg5 {[%clk 0:04:51.5]} 6... Nbd7 {[%clk 0:04:49.5]}
7. Qc2 {[%clk 0:04:50.4]} 7... Bb4 {[%clk 0:04:48.3]} 8. e3 {[%clk 0:04:48.2]}
8... O-O {[%clk 0:04:46.7]} 9. Bd3 {[%clk 0:04:47.1]} 9... h6 {[%clk 0:04:35.3]}
10. Bh4 {[%clk 0:04:46]} 10... Be7 {[%clk 0:04:21.6]} 11. O-O {[%clk 0:04:44.4]}
11... Nb6 {[%clk 0:03:51.6]} 12. Ne5 {[%clk 0:04:40.6]} 12... Be6 {[%clk
0:03:11.6]} 13. f4 {[%clk 0:04:38.8]} 13... Nfd7 {[%clk 0:02:38.5]} 14. Bxe7
{[%clk 0:04:33.6]} 14... Qxe7 {[%clk 0:02:10]} 15. Rae1 {[%clk 0:04:32.2]} 15...
Nxe5 {[%clk 0:02:02.5]} 16. fxe5 {[%clk 0:04:31.1]} 16... f6 {[%clk 0:01:54.2]}
17. exf6 {[%clk 0:04:29]} 17... Rxf6 {[%clk 0:01:54.1]} 18. Rxf6 {[%clk
0:04:27.5]} 18... Qxf6 {[%clk 0:01:47.8]} 19. Rf1 {[%clk 0:04:26.3]} 19... Qe7
{[%clk 0:01:46.4]} 20. Qf2 {[%clk 0:04:23.3]} 20... Rf8 {[%clk 0:01:44.6]} 21.
Qxf8+ {[%clk 0:04:21.2]} 21... Qxf8 {[%clk 0:01:44]} 22. Rxf8+ {[%clk
0:04:19.8]} 22... Kxf8 {[%clk 0:01:43.9]} 23. Kf2 {[%clk 0:04:16.9]} 23... Ke7
{[%clk 0:01:42.6]} 24. a3 {[%clk 0:04:11.2]} 24... Kd6 {[%clk 0:01:40.6]} 25. b4
{[%clk 0:04:09.5]} 25... Nd7 {[%clk 0:01:28.8]} 26. g3 {[%clk 0:04:07.7]} 26...
b5 {[%clk 0:01:28]} 27. e4 {[%clk 0:03:58.1]} 27... Nf6 {[%clk 0:01:24.1]} 28.
e5+ {[%clk 0:03:56.8]} 28... Ke7 {[%clk 0:01:21.5]} 29. exf6+ {[%clk 0:03:55.5]}
29... Kxf6 {[%clk 0:01:21.4]} 30. Ne2 {[%clk 0:03:52.8]} 30... Kg5 {[%clk
0:01:20.5]} 31. Nf4 {[%clk 0:03:51.6]} 31... Bf5 {[%clk 0:01:16.5]} 32. Bxf5
{[%clk 0:03:49.6]} 32... Kxf5 {[%clk 0:01:16.4]} 33. Ke3 {[%clk 0:03:48.9]}
33... Kg4 {[%clk 0:01:15.5]} 34. Kf2 {[%clk 0:03:43.4]} 34... Kf5 {[%clk
0:01:14]} 35. Kf3 {[%clk 0:03:42.5]} 35... g5 {[%clk 0:01:12.6]} 36. Nd3 {[%clk
0:03:40.9]} 36... g4+ {[%clk 0:01:11.6]} 37. Ke3 {[%clk 0:03:40.2]} 37... Kg5
{[%clk 0:01:09.6]} 38. Ne5 {[%clk 0:03:39.1]} 38... h5 {[%clk 0:01:07]} 39. Nxc6
{[%clk 0:03:38.1]} 39... h4 {[%clk 0:01:06.4]} 40. Nxa7 {[%clk 0:03:37]} 40...
hxg3 {[%clk 0:01:05.2]} 41. hxg3 {[%clk 0:03:36.3]} 41... Kf5 {[%clk 0:01:04.6]}
42. Nxb5 {[%clk 0:03:35.3]} 42... Ke6 {[%clk 0:01:04.5]} 43. a4 {[%clk
0:03:34.4]} 43... Kd7 {[%clk 0:01:03.8]} 44. a5 {[%clk 0:03:33.4]} 44... Kc6
{[%clk 0:01:03.7]} 45. Nc3 {[%clk 0:03:32.5]} 45... Kb7 {[%clk 0:01:03]} 46. b5
{[%clk 0:03:31.6]} 46... Kc7 {[%clk 0:01:02.2]} 47. Nxd5+ {[%clk 0:03:30.9]}
47... Kb7 {[%clk 0:01:02.1]} 48. Nf6 {[%clk 0:03:28.8]} 48... Kc7 {[%clk
0:01:02]} 49. Ke4 {[%clk 0:03:27.7]} 49... Kd6 {[%clk 0:01:01.9]} 50. Nxg4
{[%clk 0:03:26.7]} 50... Kc7 {[%clk 0:01:01.8]} 51. Kd5 {[%clk 0:03:24.9]} 1-0